Cogmind - Beta 9.6 @@@ ROGUE MODE // 2020.06.04 @ 01:32:31 Player: heavypress Result: Destroyed by Y-64 Sentinel with KE Penetrator Performance ------------- Evolutions (4) 2000 Regions Visited (7) 1400 Robots Destroyed (18) 90 Value Destroyed (475) 475 Prototype IDs (1) 20 Alien Tech Used (0) 0 Bonus (85) 85 TOTAL SCORE: 4070 Bonus ------- Follower Combat Kills 85 Cogmind --------- Core Integrity 0/850 Matter 285/300 Energy 99/100 System Corruption 19% Temperature Cool (0) Movement Core (50) Location -6/Lower Caves Parts ------- > --- POWER (3) -------- (None) > --- PROPULSION (4) --- (None) > --- UTILITY (4) ------ Experimental Sensor Array > --- WEAPON (4) ------- (None) > --- INVENTORY (4) ---- (None) Peak State ------------ > --- POWER ------------ Nuclear Core Nuclear Core Micro Nuclear Core > --- PROPULSION ------- Cesium-ion Thruster Cesium-ion Thruster Cesium-ion Thruster Nuclear Pulse Thruster > --- UTILITY ---------- Advanced Terrain Scanner Terrain Scan Processor Hacking Suite > --- WEAPON ----------- Remote Datajack > --- INVENTORY -------- Improved Deuterium Engine VTOL Module Experimental Sensor Array Hacking Suite [Rating: 37] Favorites ----------- Power Nuclear Core Engine Light Ion Engine Power Core Nuclear Core Propulsion Aluminum Leg Treads Armored Treads Leg Aluminum Leg Flight Unit Cesium-ion Thruster Utility Terrain Scan Processor Device Sensor Array Storage Small Storage Unit Processor Terrain Scan Processor Hackware Hacking Suite Weapon Grenade Launcher Energy Gun Beamcaster Ballistic Gun Light Assault Rifle Ballistic Cannon Assault Cannon Launcher Grenade Launcher Special Weapon Mining Laser Slashing Weapon Makeshift Axe Build | -11 -10 -10 -9 -8 -7 -6 -6 ------- Run | Scr Mat Min Mat Mat Fac Fac Low Slots Evolved 8 | . . . 2 2 2 2 . Power 2 | . . . . . 1 1 . Propulsion 2 | . . . . 1 1 . . Utility 2 | . . . . 1 . 1 . Weapon 2 | . . . 2 . . . . Parts Attached 61 | 6 8 1 6 12 7 9 12 Power 12 | 1 1 . 1 1 2 4 2 Engine 4 | 1 1 . 1 . . . 1 Core 8 | . . . . 1 2 4 1 Reactor . | . . . . . . . . Propulsion 21 | 2 3 . 2 6 4 2 2 Treads 2 | . . . . 2 . . . Leg 7 | 2 2 . 2 . . . 1 Wheel . | . . . . . . . . Hover . | . . . . . . . . Flight 12 | . 1 . . 4 4 2 1 Utility 14 | 1 2 . 2 3 1 1 4 Device 9 | . 1 . 2 2 . 1 3 Storage 1 | 1 . . . . . . . Processor 3 | . 1 . . 1 . . 1 Hackware 1 | . . . . . 1 . . Protection . | . . . . . . . . Artifact . | . . . . . . . . Weapon 14 | 2 2 1 1 2 . 2 4 Energy Gun 1 | . . . 1 . . . . Energy Cannon . | . . . . . . . . Ballistic Gun 6 | 2 1 . . . . 2 1 Ballistic Cannon 1 | . . . . 1 . . . Launcher 1 | . 1 . . . . . . Special Weapon 2 | . . 1 . 1 . . . Impact Weapon . | . . . . . . . . Slashing Weapon 3 | . . . . . . . 3 Piercing Weapon . | . . . . . . . . Special Melee Weapon . | . . . . . . . . Unidentified Prototypes 1 | . . . . . . . 1 Parts Lost 37 | . 8 . 8 2 1 3 15 Power 6 | . 2 . 1 . . . 3 Propulsion 12 | . 3 . 2 1 1 2 3 Utility 9 | . . . 2 1 . . 6 Weapon 10 | . 3 . 3 . . 1 3 Highest Loss Streak 7 | . 7 . 3 1 1 3 7 Average Slot Usage (%) 61 | . 74 79 51 53 75 58 29 Engine 2 | . 11 . 2 . . . 2 Core 2 | . . . . 3 15 10 1 Treads 1 | . . . . 10 . . . Leg 14 | . 23 28 18 . . . . Flight 4 | . . . . 8 29 19 1 Device 10 | . 6 14 9 12 7 6 7 Storage 1 | . 9 . . . . . . Processor 10 | . 1 14 11 13 14 6 10 Ballistic Gun 3 | . 17 . . . . 3 3 Launcher 5 | . 4 14 2 . . . . Special Weapon 3 | . . 8 3 . 7 3 . Naked Turns . | . . . . . . . . Heaviest Build 24 | 9 10 5 8 13 18 24 15 Greatest Support 40 | 20 20 20 28 40 23 26 15 Greatest Overweight (x) 4 | . 2 . . . . 1 4 Average Overweight (x) . | . . . . . . . 1 Largest Inventory Capacity 6 | 6 6 4 4 4 4 4 4 Average Capacity 4 | 5 5 4 4 4 4 4 4 Most Carried 6 | 3 6 4 4 4 4 4 4 Average Carried 3 | 1 3 3 3 3 2 3 2 Final Capacity 6 | 6 4 4 4 4 4 4 4 Final Carried 4 | 3 3 4 3 4 4 4 . Class Distribution -------------------- 87% | Mutant 6% | Sprinter 4% | Scavenger-Mutant Dominant Class ---------------- Mutant | -10/Materials Mutant | -10/Mines Mutant | -9/Materials Mutant | -8/Materials Sprinter | -7/Factory Mutant | -6/Factory Mutant | -6/Lower Caves Resources | -11 -10 -10 -9 -8 -7 -6 -6 ----------- Run | Scr Mat Min Mat Mat Fac Fac Low Matter Collected 798 | 196 136 94 . 27 . . 345 Remotely . | . . . . . . . . Salvage Created 512 | . 153 59 31 39 . . 230 Parts 28 | . 12 6 2 3 . . 5 Haulers Intercepted . | . . . . . . . . Recyclers Shooed 1 | . 1 . . . . . . Parts Field Recycled . | . . . . . . . . Retrieved Matter . | . . . . . . . . Parts Self-Destructed 5 | . . . . . . . 5 Prevented . | . . . . . . . . Kills | -11 -10 -10 -9 -8 -7 -6 -6 ------- Run | Scr Mat Min Mat Mat Fac Fac Low Combat Hostiles Destroyed 14 | . 5 . 2 3 . . 4 Melee 3 | . . . . 1 . . 2 Guns 6 | . 3 . 1 . . . 2 Cannons 2 | . . . . 2 . . . AOE 2 | . 2 . . . . . . Classes Destroyed 8 | . 3 2 1 . . . 2 Worker 1 | . . 1 . . . . . Builder 2 | . 2 . . . . . . Recycler 1 | . . 1 . . . . . Swarmer 5 | . 2 . . 3 . . . Grunt 5 | . 3 . 1 . . . 1 Brawler 1 | . . . . . . . 1 Duelist 2 | . . . 1 . . . 1 Sentry 1 | . . . . . . . 1 Best Kill Streak 3 | . 2 1 1 3 . . 2 Combat Bots Only 3 | . 2 . 1 3 . . 2 Max Kills in Single Turn 2 | . 2 1 1 1 . . 1 Gunslinging . | . . . . . . . . Exploded 1 | . 1 . . . . . . Melee 1 | . . . . 1 . . 1 Uniques/NPCs Destroyed . | . . . . . . . . Combat | -11 -10 -10 -9 -8 -7 -6 -6 -------- Run | Scr Mat Min Mat Mat Fac Fac Low Damage Taken 3975 | . 873 24 772 404 77 320 1505 Core 1524 | . 232 . 290 119 30 116 737 Absorbed by Shields . | . . . . . . . . Core Remaining (%) 61 | 100 . 7 27 78 95 . . Volleys Fired 61 | . 31 3 9 5 . 6 7 Largest 2 | . 2 1 1 1 . 1 2 Hottest 100 | . 40 100 100 44 . 30 50 Shots Fired 89 | . 52 3 9 5 . 6 14 Gun 64 | . 46 . 4 . . . 14 Cannon 5 | . . . . 5 . . . Launcher 7 | . 6 1 . . . . . Special 13 | . . 2 5 . . 6 . Kinetic 65 | . 46 . . 5 . . 14 Thermal 11 | . . 2 9 . . . . Explosive 7 | . 6 1 . . . . . Electromagnetic . | . . . . . . . . Robot Hit Streak 15 | . 15 5 9 4 . 1 6 Robot Miss Streak 4 | . 3 . 2 3 . 1 4 Penetration Max . | . . . . . . . . Secondary Targets . | . . . . . . . . Shots Hit Robots 71 | . 39 2 7 2 . 3 18 Core Hits 35 | . 14 2 5 3 . . 11 Critical Hits 1 | . 1 . . . . . . Critical Kills . | . . . . . . . . Critical Parts Destroyed 1 | . 1 . . . . . . Melee Attacks 11 | . . . . . . . 11 Impact . | . . . . . . . . Slashing 11 | . . . . . . . 11 Piercing . | . . . . . . . . Sneak Attacks . | . . . . . . . . Combat Hostiles . | . . . . . . . . Follow-up Attacks . | . . . . . . . . Damage Inflicted 1327 | . 607 73 188 51 . . 408 Guns 573 | . 290 . 86 . . . 197 Cannons 49 | . . . . 49 . . . Explosions 342 | . 317 25 . . . . . Melee 211 | . . . . . . . 211 Ramming 8 | . . . 6 2 . . . Kinetic 536 | . 290 . . 49 . . 197 Thermal 230 | . . 48 182 . . . . Explosive 342 | . 317 25 . . . . . Electromagnetic . | . . . . . . . . Impact . | . . . . . . . . Slashing 211 | . . . . . . . 211 Piercing . | . . . . . . . . Highest Corruption 19 | . . . . . . . 19 Average Corruption 17 | . . . . . . . 17 Corruption Purged . | . . . . . . . . Effects 7 | . . . . . . . 7 Message Errors 2 | . . . . . . . 2 Matter Fused 1 | . . . . . . . 1 Heat Flow Errors 1 | . . . . . . . 1 Misdirections 2 | . . . . . . . 2 Targeting Errors 1 | . . . . . . . 1 Overload Shots . | . . . . . . . . Overflow Damage 70 | . 70 . . . . . . Projectiles . | . . . . . . . . Explosions 70 | . 70 . . . . . . Melee . | . . . . . . . . Knockbacks . | . . . . . . . . Impact . | . . . . . . . . Kinetic . | . . . . . . . . Secondary . | . . . . . . . . Self-Inflicted Damage 72 | . 48 24 . . . . . Shots 3 | . 2 1 . . . . . Rammed 13 | . . . 4 9 . . . Targets Rammed 16 | . . . 6 10 . . . Kicked 2 | . . . 2 . . . . Crushed 1 | . . . . 1 . . . Highest Temperature 166 | . 65 . 114 13 14 59 166 Average Temperature 29 | . 27 . 34 8 5 25 60 Received Heat Transfer 1146 | . 402 . 276 63 45 63 297 Siege Activations . | . . . . . . . . Robots Corrupted . | . . . . . . . . Combat Hostiles . | . . . . . . . . Parts Fried . | . . . . . . . . Impact Corruptions . | . . . . . . . . Robots Melted . | . . . . . . . . Combat Hostiles . | . . . . . . . . Parts Melted . | . . . . . . . . Heat Transferred 448 | . . 100 348 . . . . Parts Sabotaged . | . . . . . . . . Parts Stolen . | . . . . . . . . Parts Stripped . | . . . . . . . . Power Chain Reactions . | . . . . . . . . Missiles Intercepted . | . . . . . . . . Alert | -11 -10 -10 -9 -8 -7 -6 -6 ------- Run | Scr Mat Min Mat Mat Fac Fac Low Peak Influence 127 | . 95 74 55 104 92 127 . Average Influence 46 | . 58 32 29 55 69 90 . Maximum Alert Level . | . . . . . . . . Low Security (%) 100 | 100 100 100 100 100 100 100 . Level 1 . | . . . . . . . . Level 2 . | . . . . . . . . Level 3 . | . . . . . . . . Level 4 . | . . . . . . . . Level 5 . | . . . . . . . . High Security . | . . . . . . . . Max Security . | . . . . . . . . Squads Dispatched 6 | . 1 . 1 . 2 2 . Investigation 1 | . . . 1 . . . . Extermination . | . . . . . . . . Reinforcement 5 | . 1 . . . 2 2 . Assault . | . . . . . . . . Garrison . | . . . . . . . . Intercept . | . . . . . . . . Construction Impeded . | . . . . . . . . Haulers Reinforced . | . . . . . . . . Stealth | -11 -10 -10 -9 -8 -7 -6 -6 --------- Run | Scr Mat Min Mat Mat Fac Fac Low Distress Signals 5 | . 2 . 2 . . 1 . Communications Jammed . | . . . . . . . . Distress Signals . | . . . . . . . . Times Spotted 74 | . 9 . 16 7 13 15 14 Peak Tracking Total 9 | . 6 . 9 4 7 9 5 Tactical Retreats 10 | . . . . . 2 4 4 Traps | -11 -10 -10 -9 -8 -7 -6 -6 ------- Run | Scr Mat Min Mat Mat Fac Fac Low Traps Triggered 3 | . . . 1 . 1 1 . Indirectly . | . . . . . . . . Trap Hack Attempts . | . . . . . . . . Triggered . | . . . . . . . . Disarmed . | . . . . . . . . Reprogrammed . | . . . . . . . . Reused . | . . . . . . . . Traps Extracted . | . . . . . . . . Installed . | . . . . . . . . Triggered . | . . . . . . . . Machines | -11 -10 -10 -9 -8 -7 -6 -6 ---------- Run | Scr Mat Min Mat Mat Fac Fac Low Machines Disabled 1 | . 1 . . . . . . Max in Single Turn 1 | . 1 . . . . . . Machines Sabotaged . | . . . . . . . . Garrisons Compromised . | . . . . . . . . Overloaded Fab Kills . | . . . . . . . . Fab Network Shutdowns . | . . . . . . . . Hacking | -11 -10 -10 -9 -8 -7 -6 -6 --------- Run | Scr Mat Min Mat Mat Fac Fac Low Machines Accessed 3 | . . . . . 1 1 1 Terminals 1 | . . . . . . 1 . Fabricators . | . . . . . . . . Repair Stations 1 | . . . . . 1 . . Recycling Units . | . . . . . . . . Scanalyzers . | . . . . . . . . Garrison Access . | . . . . . . . . Total Hacks 6 | . . . . . 2 3 1 Successful 2 | . . . . . . 1 1 Failed 4 | . . . . . 2 2 . Catastrophic . | . . . . . . . . Database Lockouts . | . . . . . . . . Manual . | . . . . . . . . Terminals 3 | . . . . . . 3 . Fabricators . | . . . . . . . . Repair Stations 2 | . . . . . 2 . . Recycling Units . | . . . . . . . . Scanalyzers . | . . . . . . . . Garrison Access . | . . . . . . . . Terminal Hacks 2 | . . . . . . 1 1 Record 1 | . . . . . . 1 . Open Door 1 | . . . . . . . 1 Fabricator Hacks . | . . . . . . . . Repair Station Hacks . | . . . . . . . . Recycling Unit Hacks . | . . . . . . . . Scanalyzer . | . . . . . . . . Garrison Access Hacks . | . . . . . . . . Unauthorized Hacks . | . . . . . . . . Terminals . | . . . . . . . . Fabricators . | . . . . . . . . Repair Stations . | . . . . . . . . Recycling Units . | . . . . . . . . Scanalyzers . | . . . . . . . . Garrison Access . | . . . . . . . . Data Cores Recovered . | . . . . . . . . Used . | . . . . . . . . Hacking Detections 2 | . . . . . 1 1 . Full Trace Events . | . . . . . . . . Feedback Events . | . . . . . . . . Feedback Blocked . | . . . . . . . . Robot Schematics Acquired . | . . . . . . . . Robots Built . | . . . . . . . . Matter . | . . . . . . . . Time . | . . . . . . . . Total Robot Build Rating . | . . . . . . . . Part Schematics Acquired . | . . . . . . . . Parts Built . | . . . . . . . . Matter . | . . . . . . . . Time . | . . . . . . . . Total Part Build Rating . | . . . . . . . . Parts Repaired . | . . . . . . . . Time . | . . . . . . . . Parts Recycled . | . . . . . . . . Recycled Matter . | . . . . . . . . Retrieved Matter . | . . . . . . . . Retrieved Components . | . . . . . . . . Parts Scanalyzed . | . . . . . . . . Part Schematics Acquired . | . . . . . . . . Parts Damaged . | . . . . . . . . Bothacking | -11 -10 -10 -9 -8 -7 -6 -6 ------------ Run | Scr Mat Min Mat Mat Fac Fac Low Used RIF Installer . | . . . . . . . . Robots Hacked 2 | . . . . . . 2 . Non-combat 2 | . . . . . . 2 . Combat . | . . . . . . . . Robot Hacks Applied 3 | . . . . . . 3 . parse_system 1 | . . . . . . 1 . no_distress 1 | . . . . . . 1 . find_chute 1 | . . . . . . 1 . Relay Couplers Released . | . . . . . . . . Robots Rewired . | . . . . . . . . Allies Hacked . | . . . . . . . . Hacks Repelled . | . . . . . . . . Allies | -11 -10 -10 -9 -8 -7 -6 -6 -------- Run | Scr Mat Min Mat Mat Fac Fac Low Total Allies 3 | . . 3 . . . . . Largest Group 2 | . . 2 1 . . . . Highest-Rated Group 62 | . . 62 31 . . . . Highest-Rated Ally 31 | . . 31 31 . . . . Total Orders . | . . . . . . . . Ally Attacks 18 | . . 6 12 . . . . Total Damage 273 | . . 126 147 . . . . Kills 3 | . . 2 1 . . . . Allies Corrupted . | . . . . . . . . Allies Melted . | . . . . . . . . Intel | -11 -10 -10 -9 -8 -7 -6 -6 ------- Run | Scr Mat Min Mat Mat Fac Fac Low Robot Analysis Total . | . . . . . . . . Derelict Logs Recovered 1 | . . 1 . . . . . Drone Launches . | . . . . . . . . Drone Recoveries . | . . . . . . . . Exploration | -11 -10 -10 -9 -8 -7 -6 -6 ------------- Run | Scr Mat Min Mat Mat Fac Fac Low Turns Passed 2370 | 60 348 788 208 222 97 204 443 Spaces Moved 2320 | 46 201 638 130 235 256 464 350 Core 389 | 13 22 . 17 29 . . 308 Treads 52 | . . . . 52 . . . Legs 960 | 33 174 638 113 . . . 2 Wheels . | . . . . . . . . Hover . | . . . . . . . . Flight 919 | . 5 . . 154 256 464 40 Fastest Speed 31 | 50 100 120 50 34 31 31 37 Average Speed 85 | 100 119 120 110 66 31 35 108 Slowest Speed 250 | 120 150 120 120 170 34 117 250 Overloaded Moves . | . . . . . . . . Propulsion Burnouts . | . . . . . . . . Robots Hopped 15 | . . . . . 3 12 . Cave-ins Triggered . | . . . . . . . . Exploration Rate (%) 33 | 3 36 97 16 26 10 22 59 Regions Visited 7 Branch Regions 2 Pre-discovered Areas 1 | . . 1 . . . . . Known Exits Taken . | . . . . . . . . Unknown Exits Taken 7 | 1 1 1 1 1 1 1 . Scrap Searched 6 | . . 2 . . . . 4 Spaces Dug . | . . . . . . . . Terrain Destroyed 59 | . 48 9 1 1 . . . Melee . | . . . . . . . . Projectile 2 | . . . 1 1 . . . AOE 57 | . 48 9 . . . . . Actions | -11 -10 -10 -9 -8 -7 -6 -6 --------- Run | Scr Mat Min Mat Mat Fac Fac Low Total 2599 | 60 266 654 174 293 269 490 393 Wait 45 | . 16 7 15 . . 7 . Move 2287 | 45 200 637 130 234 249 442 350 Hop 12 | . . . . . 3 9 . Pick Up 71 | 9 9 4 6 20 8 9 6 Fast Attach . | . . . . . . . . Attach 52 | 6 8 1 4 9 5 7 12 Detach 8 | . . . . 1 . 3 4 Swap 9 | . . . 2 3 2 2 . Drop 28 | . 2 2 3 11 2 5 3 Fire 61 | . 31 3 9 5 . 6 7 Melee 11 | . . . . . . . 11 Ram . | . . . . . . . . Kick 5 | . . . 5 . . . . Crush 10 | . . . . 10 . . . Escape Stasis . | . . . . . . . . Rewire . | . . . . . . . . Trap . | . . . . . . . . Miscellaneous . | . . . . . . . . Route ------- -11/Scrapyard -10/Materials -10/Mines (discovered 2 exits: [*Mat x2]) -9/Materials -8/Materials -7/Factory -6/Factory -6/Lower Caves History --------- Turn | Location | Event 6 | -11/Scrapyard | Discovered new exit (range 16) 61 | -11/Scrapyard | Entered Materials 272 | -10/Materials | Core integrity fell below 50% 294 | -10/Materials | Core integrity fell below 20% 301 | -10/Materials | Build established: Mutant 318 | -10/Materials | Lost 7 parts (1p3n3w) 396 | -10/Materials | Discovered new exit (range 9) 409 | -10/Materials | Entered Mines 498 | -10/Mines | Found a damaged Exp. Sensor Array with a note attached 502 | -10/Mines | Found Prototype Device 533 | -10/Mines | Discovered new exit (range 14) 706 | -10/Mines | Discovered new exit (range 16) 709 | -10/Mines | Received a Mining Laser from a helpful Derelict 1197 | -10/Mines | Entered Materials 1197 | -9/Materials | Accompanied by 1 ally 1197 | -9/Materials | Evolved 2 slots: Weapon x2 1202 | -9/Materials | Led the pair of lost Derelicts to an unsafe place 1285 | -9/Materials | Lost 3 parts (1p2w) 1363 | -9/Materials | Core integrity fell below 50% 1387 | -9/Materials | Lost 3 parts (1n1u1w) 1397 | -9/Materials | Discovered new exit (range 16) 1405 | -9/Materials | Entered another Materials area 1405 | -8/Materials | Evolved 2 slots: Propulsion x1, Utility x1 1608 | -8/Materials | Discovered new exit (range 14) 1627 | -8/Materials | Entered Factory 1627 | -7/Factory | Evolved 2 slots: Power x1, Propulsion x1 1715 | -7/Factory | Discovered new exit (range 16) 1724 | -7/Factory | Entered another Factory area 1724 | -6/Factory | Evolved 2 slots: Power x1, Utility x1 1760 | -6/Factory | Spotted B-75 Beast 1870 | -6/Factory | Lost 3 parts (2n1w) 1899 | -6/Factory | Discovered new exit (range 12) 1928 | -6/Factory | Entered Lower Caves 1930 | -6/Lower Caves | Attracted the attention of an 0b10 checkpoint 2164 | -6/Lower Caves | Attracted the attention of an 0b10 outpost 2209 | -6/Lower Caves | Lost 5 parts (1p3u1w) 2274 | -6/Lower Caves | Core integrity fell below 50% 2292 | -6/Lower Caves | System corruption reached 10% 2332 | -6/Lower Caves | Lost 7 parts (1p2n3u1w) 2349 | -6/Lower Caves | Core integrity fell below 20% 2353 | -6/Lower Caves | Identified Exp. Sensor Array 2371 | -6/Lower Caves | Destroyed by Y-64 Sentinel with KE Penetrator Last Messages --------------- System corrupted by crushing effect (+3). System corrupted by crushing effect (+2). Y|5YJ%/O7EC:G8DBHBLTOGGMTYITNKZIW<0EB Slug penetrates Wall. System corrupted: Mak. Axe targeting data glitched. B-48 Gladiator destroyed. Slug penetrates Wall. V UQN=XNJN1Q41RD6=3BCKK,%RBR:PHH System corrupted: Heat flow error (+203). P-60 Hacker: "UNIQUE TECHNOLOGY DETECTED, NEUTRALIZE FOR ANALYSIS." Slug penetrates Wall. Penetrated by Slug. Mak. Axe destroyed. Penetrated by Slug. Identified Exp. Sensor Array. Slug penetrates Wall. Penetrated by Slug. Slug penetrates Wall. System corrupted: Matter fused (-5). Penetrated by Slug. Map ----- +----------------------------------------------------+ | ?????????????????????????????????????????????????? | | ?????????????????????????????????????????????????? | | ?????????????????????????????????????????????????? | | ?????????????????????????????????????????????????? | | ?????????????????????????????????????????????????? | | ?????????????????????????????????????????????????? | | ?????????????????????????????????????????????????? | | ?????????????????????????????????????????????????? | | ?????????????????????????????????????????????????? | | ?????????????????????????????????????????????????? | | ?????????????????????????????????????????????????? | | ?????????????????????????????##??????????????????? | | ???????????????????????????## ##?????????????????? | | ???????????????#####??????? #?????????????????? | | ???????????????# #??????# ??????????????????? | | ???????????????# #??????# ??????????? ????? | | ???????????????# #?????## ???????????? ????? | | ???????????????# ##????# ??????????? ?????? | | ???????????????# ##???# #??????????# ?????? | | ????????????????# ##??# #??????????# #?????? | | ?????????????????# ##?# #????#####?# #?????? | | ?????????????????# #?# #???## ### #?????? | | ????????????????## #?# #???# ## ####??? | | #??????????????## ### #???# #?# ## #### | | ##????????????## ##??# #?## | | ##????????#### ## @ #### ### | | ###?????## ### ## ## | | ##????# #?## ## | | ##???# #??#### ## | | #???# #?????#### ## | | #???# ## #????????## ## | | #???## ### #????????# ###### ? ## | | # #????# ### #????????######????## ###? | | ## ##?### ## #???????????????????# ##??? | | ## ### #???????????????????# ##???? | | ????????? #????? | | ???????## ???? | | ### ########?????????# ??? | | ### ##?## ####???????????????# #?? | | #?#####???? ????????????????# ##?? | | #?????????? ??????????????## ####??# | | #?????????? #### ??????????????## #?????# | | ###?????????? #???? ??????????????# #?????# | | #????????????? #????????????????????# #?????# | | ?????????????? #????????????????????## #?????# | | ?????????????? #?????????????????????# ?????# | | ??????????????? #?????????????????????# ?????# | | ??????????????? ##?????????????????????# ?????? | | ???????????????##??????????????????????#####?????? | | ?????????????????????????????????????????????????? | +----------------------------------------------------+ Best States ------------- Heat Dissipation 37 Energy Generation 33 Energy Capacity 430 Matter Stores 300 Matter Capacity 300 Sight Range 22 Robot Scan Range 30 Terrain Scan Range 20 Terrain Scan Density 85 Resistance: KI 20 Evasion (%) 63 Recoil Reduction 2 Offensive Hacking 10 Item Schematics ----------------- None Robot Schematics ------------------ None Fabricated ------------ Nothing Alien Tech Used ----------------- None Achievements -------------- None Challenges ------------ None Game ------ Seed LaserHellfireKinecellerator Manual? 0 Play Time 00:47:06 Cumulative 14.4 hours Start 2020.06.04 @ 00:38:44 End 2020.06.04 @ 01:32:31 Sessions 1 Manual Loads 0 Difficulty Rogue Special Mode None Game No. 26 Rogue 26 Adventurer 0 Explorer 0 Win Type - Total 0 Types 0/0/0/0/0/0/0 Lore% 18 Gallery% 23 Achievement% 17 Wizard Run 0 Options --------- ASCII 0 Keyboard 0 Movement Mouse Keybinds 0 Fullscreen 1 Font 18/SmallcapsGlow Map View 76x50 Tactical HUD 0 Map Filters NONE Filters NONE Steam 1 RUN: 6efa3e72-dd80-4b78-89ad-455adfa34afb